[Event "Titled Tuesday Blitz February 14 Late 2023"]
[White "Rios Escobar, Adan"]
[Black "Poliakova, Varvara"]
[WhiteFideId "3403645"]
[BlackFideId "13518313"]
[WhiteElo "2234"]
[BlackElo "2010"]
[Result "0-1"]
[Round "01"]
[TimeControl "180+2"]
[Date "2023.02.14"]
[WhiteClock "0:00:02"]
[BlackClock "0:00:12"]

1. d4 {[%clk 0:03:00]}  f5 {[%clk 0:02:52]} 2. g3 {[%clk 0:03:00]}  Nf6 {[%clk 0:02:51]} 3. Bg2 {[%clk 0:03:00]}  d6 {[%clk 0:02:52]} 4. Nf3 {[%clk 0:02:56]}  g6 {[%clk 0:02:52]} 5. O-O {[%clk 0:02:56]}  Bg7 {[%clk 0:02:52]} 6. b3 {[%clk 0:02:57]}  O-O {[%clk 0:02:52]} 7. Bb2 {[%clk 0:02:57]}  Nc6 {[%clk 0:02:52]} 8. c4 {[%clk 0:02:51]}  e5 {[%clk 0:02:51]} 9. dxe5 {[%clk 0:02:44]}  Ng4 {[%clk 0:02:48]} 10. Qc2 {[%clk 0:02:11]}  Ngxe5 {[%clk 0:02:46]} 11. Nbd2 {[%clk 0:02:05]}  Qe7 {[%clk 0:02:41]} 12. Rad1 {[%clk 0:01:58]}  a5 {[%clk 0:02:37]} 13. a3 {[%clk 0:01:57]}  Be6 {[%clk 0:02:34]} 14. Rfe1 {[%clk 0:01:56]}  f4 {[%clk 0:02:32]} 15. Ne4 {[%clk 0:01:43]}  fxg3 {[%clk 0:02:23]} 16. hxg3 {[%clk 0:01:42]}  Bf5 {[%clk 0:02:18]} 17. Nh4 {[%clk 0:01:36]}  Be6 {[%clk 0:02:16]} 18. Ba1 {[%clk 0:01:17]}  Rf7 {[%clk 0:02:05]} 19. f4 {[%clk 0:01:08]}  Ng4 {[%clk 0:02:02]} 20. Ng5 {[%clk 0:01:08]}  Ne3 {[%clk 0:01:46]} 21. Qe4 {[%clk 0:01:06]}  Bf5 {[%clk 0:01:40]} 22. Nxf5 {[%clk 0:00:46]}  gxf5 {[%clk 0:01:38]} 23. Qxe7 {[%clk 0:00:36]}  Rxe7 {[%clk 0:01:39]} 24. Bxg7 {[%clk 0:00:36]}  Kxg7 {[%clk 0:01:40]} 25. Rd3 {[%clk 0:00:29]}  h6 {[%clk 0:01:39]} 26. Nf3 {[%clk 0:00:25]}  Rae8 {[%clk 0:01:38]} 27. Bf1 {[%clk 0:00:19]}  Nc2 {[%clk 0:01:34]} 28. Rc1 {[%clk 0:00:18]}  Nxa3 {[%clk 0:01:33]} 29. c5 {[%clk 0:00:12]}  dxc5 {[%clk 0:01:30]} 30. Rxc5 {[%clk 0:00:13]}  Re3 {[%clk 0:01:17]} 31. Rd7+ {[%clk 0:00:10]}  Kf6 {[%clk 0:01:07]} 32. Rxc7 {[%clk 0:00:10]}  Rxb3 {[%clk 0:01:06]} 33. Nh4 {[%clk 0:00:10]}  Nd4 {[%clk 0:00:58]} 34. Rh7 {[%clk 0:00:09]}  Rxg3+ {[%clk 0:00:56]} 35. Kh2 {[%clk 0:00:09]}  Rg4 {[%clk 0:00:54]} 36. Rxh6+ {[%clk 0:00:07]}  Kg7 {[%clk 0:00:54]} 37. Rh5 {[%clk 0:00:04]}  Rxf4 {[%clk 0:00:48]} 38. Rc7+ {[%clk 0:00:03]}  Kf6 {[%clk 0:00:41]} 39. Rxb7 {[%clk 0:00:03]}  Re6 {[%clk 0:00:38]} 40. Kh3 {[%clk 0:00:02]}  Nac2 {[%clk 0:00:35]} 41. Rh6+ {[%clk 0:00:02]}  Ke5 {[%clk 0:00:35]} 42. Rxe6+ {[%clk 0:00:02]}  Kxe6 {[%clk 0:00:34]} 43. Rb6+ {[%clk 0:00:03]}  Kd5 {[%clk 0:00:34]} 44. Ra6 {[%clk 0:00:02]}  Nc6 {[%clk 0:00:32]} 45. Bg2+ {[%clk 0:00:02]}  Kd4 {[%clk 0:00:30]} 46. Rxc6 {[%clk 0:00:02]}  Na3 {[%clk 0:00:20]} 47. Re6 {[%clk 0:00:02]}  Kc5 {[%clk 0:00:17]} 48. Nf3 {[%clk 0:00:01]}  Nc4 {[%clk 0:00:15]} 49. Rf6 {[%clk 0:00:01]}  a4 {[%clk 0:00:14]} 50. Kg3 {[%clk 0:00:02]}  Re4 {[%clk 0:00:11]} 51. Rxf5+ {[%clk 0:00:02]}  Kb4 {[%clk 0:00:12]} 0-1


[Site "https://www.chess.com"]

[Event "Titled Tuesday Blitz February 14 Late 2023"]
[White "Popilski, Gil"]
[Black "Slavin, Alexey"]
[WhiteFideId "2809060"]
[BlackFideId "24104388"]
[WhiteElo "2443"]
[BlackElo "2364"]
[Result "1-0"]
[Round "01"]
[TimeControl "180+2"]
[Date "2023.02.14"]
[WhiteClock "0:01:05"]
[BlackClock "0:00:04"]

1. b4 {[%clk 0:02:58]}  Nc6 {[%clk 0:02:51]} 2. b5 {[%clk 0:02:58]}  Ne5 {[%clk 0:02:50]} 3. d4 {[%clk 0:02:56]}  Ng6 {[%clk 0:02:50]} 4. h4 {[%clk 0:02:55]}  h5 {[%clk 0:02:46]} 5. e4 {[%clk 0:02:54]}  d6 {[%clk 0:02:42]} 6. g3 {[%clk 0:02:47]}  Nf6 {[%clk 0:02:40]} 7. f3 {[%clk 0:02:47]}  e5 {[%clk 0:02:39]} 8. d5 {[%clk 0:02:46]}  a6 {[%clk 0:02:37]} 9. c4 {[%clk 0:02:44]}  Be7 {[%clk 0:02:35]} 10. Bh3 {[%clk 0:02:40]}  Bxh3 {[%clk 0:02:26]} 11. Nxh3 {[%clk 0:02:41]}  axb5 {[%clk 0:02:25]} 12. cxb5 {[%clk 0:02:41]}  Nd7 {[%clk 0:02:17]} 13. Nf2 {[%clk 0:02:34]}  Nc5 {[%clk 0:02:15]} 14. Be3 {[%clk 0:02:33]}  b6 {[%clk 0:01:56]} 15. a4 {[%clk 0:02:17]}  Qd7 {[%clk 0:01:44]} 16. O-O {[%clk 0:02:09]}  f5 {[%clk 0:01:40]} 17. exf5 {[%clk 0:02:05]}  Qxf5 {[%clk 0:01:39]} 18. Bxc5 {[%clk 0:02:04]}  bxc5 {[%clk 0:01:32]} 19. Nc3 {[%clk 0:02:03]}  O-O {[%clk 0:01:30]} 20. Kg2 {[%clk 0:01:59]}  Bxh4 {[%clk 0:01:21]} 21. Nfe4 {[%clk 0:01:59]}  Be7 {[%clk 0:01:17]} 22. a5 {[%clk 0:01:43]}  h4 {[%clk 0:01:16]} 23. g4 {[%clk 0:01:43]}  Nf4+ {[%clk 0:01:10]} 24. Kh2 {[%clk 0:01:38]}  Qg6 {[%clk 0:01:02]} 25. Qc2 {[%clk 0:01:34]}  Qe8 {[%clk 0:00:37]} 26. Qb3 {[%clk 0:01:29]}  Qf7 {[%clk 0:00:24]} 27. b6 {[%clk 0:01:26]}  cxb6 {[%clk 0:00:23]} 28. axb6 {[%clk 0:01:27]}  Rab8 {[%clk 0:00:13]} 29. Ra7 {[%clk 0:01:26]}  Qe8 {[%clk 0:00:10]} 30. Rb1 {[%clk 0:01:18]}  h3 {[%clk 0:00:10]} 31. Qb5 {[%clk 0:01:14]}  Qd8 {[%clk 0:00:06]} 32. Rd7 {[%clk 0:01:10]}  Qe8 {[%clk 0:00:05]} 33. b7 {[%clk 0:01:10]}  Bh4 {[%clk 0:00:04]} 34. Qc6 {[%clk 0:01:05]} 1-0


[Site "https://www.chess.com"]

[Event "Titled Tuesday Blitz February 14 Late 2023"]
[White "Bulgurlu, Okan"]
[Black "Klose, Eli"]
[WhiteFideId "6352316"]
[BlackFideId "16242955"]
[WhiteElo "1908"]
[BlackElo "1519"]
[Result "0-1"]
[Round "01"]
[TimeControl "180+2"]
[Date "2023.02.14"]
[WhiteClock "0:00:05"]
[BlackClock "0:00:28"]

1. e4 {[%clk 0:02:58]}  e6 {[%clk 0:02:59]} 2. d4 {[%clk 0:02:58]}  d5 {[%clk 0:03:00]} 3. exd5 {[%clk 0:02:58]}  exd5 {[%clk 0:03:01]} 4. Nf3 {[%clk 0:02:58]}  Nf6 {[%clk 0:03:01]} 5. c4 {[%clk 0:02:57]}  Be7 {[%clk 0:02:54]} 6. Bf4 {[%clk 0:02:53]}  O-O {[%clk 0:02:43]} 7. Nbd2 {[%clk 0:02:53]}  Bg4 {[%clk 0:02:41]} 8. Be2 {[%clk 0:02:52]}  Nbd7 {[%clk 0:02:38]} 9. O-O {[%clk 0:02:52]}  dxc4 {[%clk 0:02:38]} 10. Nxc4 {[%clk 0:02:51]}  Nb6 {[%clk 0:02:35]} 11. Ne3 {[%clk 0:02:51]}  Bh5 {[%clk 0:02:33]} 12. Rc1 {[%clk 0:02:49]}  Nbd5 {[%clk 0:02:32]} 13. Be5 {[%clk 0:02:42]}  c6 {[%clk 0:02:31]} 14. Nf5 {[%clk 0:02:41]}  Re8 {[%clk 0:02:26]} 15. Nxe7+ {[%clk 0:02:40]}  Qxe7 {[%clk 0:02:22]} 16. Re1 {[%clk 0:02:40]}  Qd8 {[%clk 0:02:14]} 17. Qb3 {[%clk 0:02:36]}  Qb6 {[%clk 0:02:14]} 18. Qxb6 {[%clk 0:02:31]}  axb6 {[%clk 0:02:15]} 19. a3 {[%clk 0:02:31]}  b5 {[%clk 0:02:13]} 20. h3 {[%clk 0:02:29]}  Nd7 {[%clk 0:02:13]} 21. Bd6 {[%clk 0:02:23]}  f6 {[%clk 0:02:10]} 22. g4 {[%clk 0:02:15]}  Bf7 {[%clk 0:02:04]} 23. Bd3 {[%clk 0:02:13]}  N7b6 {[%clk 0:01:59]} 24. g5 {[%clk 0:01:44]}  Na4 {[%clk 0:01:37]} 25. b3 {[%clk 0:01:31]}  Nab6 {[%clk 0:01:36]} 26. gxf6 {[%clk 0:01:30]}  gxf6 {[%clk 0:01:35]} 27. Kh2 {[%clk 0:01:23]}  Bg6 {[%clk 0:01:31]} 28. Rg1 {[%clk 0:01:23]}  Kf7 {[%clk 0:01:31]} 29. Bxg6+ {[%clk 0:01:19]}  hxg6 {[%clk 0:01:32]} 30. Nh4 {[%clk 0:01:10]}  g5 {[%clk 0:01:31]} 31. Nf5 {[%clk 0:01:09]}  Re2 {[%clk 0:01:29]} 32. Bg3 {[%clk 0:01:07]}  Rxa3 {[%clk 0:01:14]} 33. Nd6+ {[%clk 0:01:07]}  Kg6 {[%clk 0:01:15]} 34. Nxb7 {[%clk 0:01:06]}  Nb4 {[%clk 0:01:11]} 35. Nc5 {[%clk 0:01:05]}  N6d5 {[%clk 0:01:09]} 36. Ra1 {[%clk 0:01:01]}  Rxa1 {[%clk 0:01:06]} 37. Rxa1 {[%clk 0:01:02]}  Nc2 {[%clk 0:01:07]} 38. Rd1 {[%clk 0:00:59]}  Nce3 {[%clk 0:01:06]} 39. Rd3 {[%clk 0:00:51]}  Nf5 {[%clk 0:01:00]} 40. Rf3 {[%clk 0:00:38]}  Nxd4 {[%clk 0:00:56]} 41. Rd3 {[%clk 0:00:36]}  Ne6 {[%clk 0:00:49]} 42. Nd7 {[%clk 0:00:25]}  Nef4 {[%clk 0:00:44]} 43. Rd4 {[%clk 0:00:23]}  Rb2 {[%clk 0:00:39]} 44. Nc5 {[%clk 0:00:19]}  Ne2 {[%clk 0:00:38]} 45. Re4 {[%clk 0:00:17]}  Rc2 {[%clk 0:00:37]} 46. b4 {[%clk 0:00:17]}  Rc4 {[%clk 0:00:33]} 47. Rxc4 {[%clk 0:00:15]}  bxc4 {[%clk 0:00:34]} 48. Bd6 {[%clk 0:00:13]}  c3 {[%clk 0:00:33]} 49. Nd3 {[%clk 0:00:12]}  c2 {[%clk 0:00:33]} 50. Kg2 {[%clk 0:00:11]}  c1=Q {[%clk 0:00:31]} 51. Nxc1 {[%clk 0:00:12]}  Nxc1 {[%clk 0:00:32]} 52. Kf3 {[%clk 0:00:12]}  Nd3 {[%clk 0:00:32]} 53. Ke4 {[%clk 0:00:09]}  N3xb4 {[%clk 0:00:32]} 54. Bc5 {[%clk 0:00:10]}  Na6 {[%clk 0:00:30]} 55. Ba7 {[%clk 0:00:10]}  Nac7 {[%clk 0:00:31]} 56. Kd4 {[%clk 0:00:09]}  Ne6+ {[%clk 0:00:31]} 57. Kc4 {[%clk 0:00:10]}  Ndf4 {[%clk 0:00:32]} 58. h4 {[%clk 0:00:09]}  gxh4 {[%clk 0:00:32]} 59. f3 {[%clk 0:00:09]}  h3 {[%clk 0:00:33]} 60. Bg1 {[%clk 0:00:09]}  f5 {[%clk 0:00:31]} 61. Bh2 {[%clk 0:00:09]}  Kf6 {[%clk 0:00:29]} 62. Kc3 {[%clk 0:00:09]}  Ke5 {[%clk 0:00:30]} 63. Kd2 {[%clk 0:00:09]}  Ng5 {[%clk 0:00:31]} 64. Ke3 {[%clk 0:00:09]}  Ne6 {[%clk 0:00:29]} 65. Bg3 {[%clk 0:00:09]}  c5 {[%clk 0:00:28]} 66. Bh2 {[%clk 0:00:09]}  c4 {[%clk 0:00:28]} 67. Bg3 {[%clk 0:00:09]}  c3 {[%clk 0:00:29]} 68. Bh2 {[%clk 0:00:08]}  c2 {[%clk 0:00:29]} 69. Kd2 {[%clk 0:00:08]}  Ng5 {[%clk 0:00:30]} 70. Kxc2 {[%clk 0:00:07]}  Nxf3 {[%clk 0:00:30]} 71. Bg3 {[%clk 0:00:07]}  Ke4 {[%clk 0:00:30]} 72. Kd1 {[%clk 0:00:07]}  Nh5 {[%clk 0:00:30]} 73. Bh2 {[%clk 0:00:04]}  Nxh2 {[%clk 0:00:30]} 74. Ke2 {[%clk 0:00:05]}  Ng4 {[%clk 0:00:29]} 75. Kf1 {[%clk 0:00:05]}  Kf3 {[%clk 0:00:28]} 76. Kg1 {[%clk 0:00:05]} 0-1


[Site "https://www.chess.com"]

[Event "Titled Tuesday Blitz February 14 Late 2023"]
[White "Rose, Felix"]
[Black "Vovk, Orest"]
[WhiteFideId "5105722"]
[BlackFideId "14113490"]
[WhiteElo "2091"]
[BlackElo "2315"]
[Result "0-1"]
[Round "01"]
[TimeControl "180+2"]
[Date "2023.02.14"]
[WhiteClock "0:01:05"]
[BlackClock "0:01:35"]

1. e4 {[%clk 0:02:40]}  g5 {[%clk 0:02:59]} 2. d4 {[%clk 0:02:40]}  g4 {[%clk 0:02:55]} 3. Nc3 {[%clk 0:02:37]}  Bg7 {[%clk 0:02:54]} 4. Be3 {[%clk 0:02:35]}  d6 {[%clk 0:02:53]} 5. Qd2 {[%clk 0:02:30]}  c6 {[%clk 0:02:52]} 6. O-O-O {[%clk 0:02:26]}  Qa5 {[%clk 0:02:52]} 7. Kb1 {[%clk 0:02:24]}  Be6 {[%clk 0:02:48]} 8. Nge2 {[%clk 0:02:18]}  b5 {[%clk 0:02:46]} 9. d5 {[%clk 0:02:14]}  b4 {[%clk 0:02:37]} 10. dxe6 {[%clk 0:02:11]}  bxc3 {[%clk 0:02:37]} 11. exf7+ {[%clk 0:02:11]}  Kxf7 {[%clk 0:02:36]} 12. Nxc3 {[%clk 0:02:11]}  Bxc3 {[%clk 0:02:35]} 13. Qxc3 {[%clk 0:02:11]}  Qxc3 {[%clk 0:02:35]} 14. bxc3 {[%clk 0:02:11]}  Nf6 {[%clk 0:02:35]} 15. f3 {[%clk 0:02:09]}  Nbd7 {[%clk 0:02:32]} 16. Bc4+ {[%clk 0:01:58]}  Kg7 {[%clk 0:02:28]} 17. Be6 {[%clk 0:01:53]}  Ne5 {[%clk 0:02:09]} 18. f4 {[%clk 0:01:44]}  Nf7 {[%clk 0:02:03]} 19. e5 {[%clk 0:01:34]}  dxe5 {[%clk 0:01:57]} 20. fxe5 {[%clk 0:01:34]}  Nxe5 {[%clk 0:01:57]} 21. Bd4 {[%clk 0:01:34]}  Ng6 {[%clk 0:01:56]} 22. Bxg4 {[%clk 0:01:32]}  e5 {[%clk 0:01:53]} 23. Bf3 {[%clk 0:01:15]}  exd4 {[%clk 0:01:52]} 24. cxd4 {[%clk 0:01:15]}  Nd5 {[%clk 0:01:49]} 25. Kc1 {[%clk 0:01:14]}  Rae8 {[%clk 0:01:42]} 26. c4 {[%clk 0:01:13]}  Ne3 {[%clk 0:01:42]} 27. Bxc6 {[%clk 0:01:08]}  Rc8 {[%clk 0:01:38]} 28. d5 {[%clk 0:01:07]}  Nxd1 {[%clk 0:01:36]} 29. Kxd1 {[%clk 0:01:07]}  Ne5 {[%clk 0:01:36]} 30. Bb5 {[%clk 0:01:05]}  Nxc4 {[%clk 0:01:35]} 0-1


[Site "https://www.chess.com"]

[Event "Titled Tuesday Blitz February 14 Late 2023"]
[White "vjecspec"]
[Black "Onslow, Alfie"]
[BlackFideId "436976"]
[WhiteElo "2552"]
[BlackElo "2157"]
[Result "1-0"]
[Round "01"]
[TimeControl "180+2"]
[Date "2023.02.14"]
[WhiteClock "0:00:09"]
[BlackClock "0:00:02"]

1. e4 {[%clk 0:03:00]}  c5 {[%clk 0:02:59]} 2. Nf3 {[%clk 0:03:00]}  Nc6 {[%clk 0:02:49]} 3. d4 {[%clk 0:02:58]}  cxd4 {[%clk 0:02:49]} 4. Nxd4 {[%clk 0:02:59]}  e5 {[%clk 0:02:49]} 5. Nb5 {[%clk 0:02:57]}  d6 {[%clk 0:02:49]} 6. c4 {[%clk 0:02:57]}  Be7 {[%clk 0:02:43]} 7. N1c3 {[%clk 0:02:55]}  a6 {[%clk 0:02:43]} 8. Na3 {[%clk 0:02:56]}  Nf6 {[%clk 0:02:43]} 9. Be2 {[%clk 0:02:55]}  O-O {[%clk 0:02:44]} 10. Nc2 {[%clk 0:02:54]}  Nd7 {[%clk 0:02:41]} 11. O-O {[%clk 0:02:49]}  Nc5 {[%clk 0:02:41]} 12. Be3 {[%clk 0:02:37]}  Ne6 {[%clk 0:02:38]} 13. Qd2 {[%clk 0:02:30]}  Bg5 {[%clk 0:02:32]} 14. Bxg5 {[%clk 0:02:23]}  Qxg5 {[%clk 0:02:33]} 15. Qxg5 {[%clk 0:02:22]}  Nxg5 {[%clk 0:02:34]} 16. Rfd1 {[%clk 0:02:13]}  Rd8 {[%clk 0:02:33]} 17. Rd2 {[%clk 0:01:51]}  Ne6 {[%clk 0:02:29]} 18. Rad1 {[%clk 0:01:49]}  Ned4 {[%clk 0:02:29]} 19. Nxd4 {[%clk 0:01:46]}  Nxd4 {[%clk 0:02:30]} 20. Bf1 {[%clk 0:01:45]}  Be6 {[%clk 0:02:28]} 21. b3 {[%clk 0:01:36]}  Kf8 {[%clk 0:02:22]} 22. Ne2 {[%clk 0:01:36]}  Nxe2+ {[%clk 0:02:15]} 23. Bxe2 {[%clk 0:01:34]}  Ke7 {[%clk 0:02:15]} 24. f3 {[%clk 0:01:01]}  Rac8 {[%clk 0:02:15]} 25. Kf2 {[%clk 0:01:00]}  g6 {[%clk 0:02:11]} 26. Ke3 {[%clk 0:00:59]}  f5 {[%clk 0:02:09]} 27. exf5 {[%clk 0:00:59]}  gxf5 {[%clk 0:02:08]} 28. f4 {[%clk 0:00:59]}  e4 {[%clk 0:02:02]} 29. g3 {[%clk 0:00:55]}  Rc6 {[%clk 0:01:58]} 30. Rd4 {[%clk 0:00:55]}  Kf6 {[%clk 0:01:55]} 31. R1d2 {[%clk 0:00:54]}  a5 {[%clk 0:01:48]} 32. Rd1 {[%clk 0:00:39]}  h5 {[%clk 0:01:29]} 33. Bxh5 {[%clk 0:00:32]}  Rh8 {[%clk 0:01:28]} 34. Be2 {[%clk 0:00:32]}  Rxh2 {[%clk 0:01:27]} 35. Rxd6 {[%clk 0:00:32]}  Rg2 {[%clk 0:01:17]} 36. Rxc6 {[%clk 0:00:24]}  bxc6 {[%clk 0:01:16]} 37. Rd6 {[%clk 0:00:22]}  Rxg3+ {[%clk 0:01:16]} 38. Kf2 {[%clk 0:00:22]}  Rc3 {[%clk 0:01:08]} 39. Rxc6 {[%clk 0:00:19]}  Rc2 {[%clk 0:01:05]} 40. a4 {[%clk 0:00:18]}  Rb2 {[%clk 0:01:02]} 41. Rb6 {[%clk 0:00:18]}  Ke7 {[%clk 0:00:58]} 42. Ke3 {[%clk 0:00:18]}  Bd7 {[%clk 0:00:51]} 43. c5 {[%clk 0:00:17]}  Be6 {[%clk 0:00:47]} 44. Bc4 {[%clk 0:00:12]}  Bxc4 {[%clk 0:00:33]} 45. bxc4 {[%clk 0:00:12]}  Rxb6 {[%clk 0:00:24]} 46. cxb6 {[%clk 0:00:13]}  Kd6 {[%clk 0:00:25]} 47. c5+ {[%clk 0:00:13]}  Kc6 {[%clk 0:00:25]} 48. Kd4 {[%clk 0:00:13]}  Kb7 {[%clk 0:00:22]} 49. Kc4 {[%clk 0:00:13]}  Kc6 {[%clk 0:00:22]} 50. Kc3 {[%clk 0:00:14]}  Kb7 {[%clk 0:00:22]} 51. Kd4 {[%clk 0:00:14]}  Kc6 {[%clk 0:00:22]} 52. Kc4 {[%clk 0:00:15]}  Kb7 {[%clk 0:00:22]} 53. Kb5 {[%clk 0:00:07]}  e3 {[%clk 0:00:22]} 54. c6+ {[%clk 0:00:08]}  Kb8 {[%clk 0:00:15]} 55. Ka6 {[%clk 0:00:05]}  e2 {[%clk 0:00:15]} 56. c7+ {[%clk 0:00:05]}  Kc8 {[%clk 0:00:14]} 57. b7+ {[%clk 0:00:06]}  Kxc7 {[%clk 0:00:13]} 58. Ka7 {[%clk 0:00:06]}  e1=Q {[%clk 0:00:13]} 59. b8=Q+ {[%clk 0:00:07]}  Kc6 {[%clk 0:00:13]} 60. Qb5+ {[%clk 0:00:07]}  Kd6 {[%clk 0:00:11]} 61. Qxf5 {[%clk 0:00:07]}  Qe3+ {[%clk 0:00:11]} 62. Ka6 {[%clk 0:00:08]}  Qb3 {[%clk 0:00:05]} 63. Kxa5 {[%clk 0:00:07]}  Qc3+ {[%clk 0:00:05]} 64. Kb5 {[%clk 0:00:06]}  Qb3+ {[%clk 0:00:05]} 65. Ka5 {[%clk 0:00:06]}  Qc3+ {[%clk 0:00:06]} 66. Ka6 {[%clk 0:00:07]}  Qc4+ {[%clk 0:00:03]} 67. Qb5 {[%clk 0:00:06]}  Qc8+ {[%clk 0:00:04]} 68. Ka5 {[%clk 0:00:06]}  Qa8+ {[%clk 0:00:04]} 69. Kb4 {[%clk 0:00:06]}  Qe4+ {[%clk 0:00:04]} 70. Qc4 {[%clk 0:00:07]}  Qb1+ {[%clk 0:00:04]} 71. Kc3 {[%clk 0:00:07]}  Qc1+ {[%clk 0:00:04]} 72. Kd4 {[%clk 0:00:07]}  Qd2+ {[%clk 0:00:04]} 73. Qd3 {[%clk 0:00:08]}  Qb4+ {[%clk 0:00:04]} 74. Ke3+ {[%clk 0:00:08]}  Ke6 {[%clk 0:00:02]} 75. Qe4+ {[%clk 0:00:08]}  Qxe4+ {[%clk 0:00:02]} 76. Kxe4 {[%clk 0:00:09]} 1-0


[Site "https://www.chess.com"]

[Event "Titled Tuesday Blitz February 14 Late 2023"]
[White "Mendez Machado, Andre"]
[Black "AyMitecK"]
[WhiteFideId "6603793"]
[WhiteElo "1974"]
[BlackElo "2577"]
[Result "0-1"]
[Round "01"]
[TimeControl "180+2"]
[Date "2023.02.14"]
[WhiteClock "0:00:13"]
[BlackClock "0:01:21"]

1. e4 {[%clk 0:03:00]}  e6 {[%clk 0:02:58]} 2. d4 {[%clk 0:03:00]}  d5 {[%clk 0:02:58]} 3. Nd2 {[%clk 0:03:01]}  Nf6 {[%clk 0:02:58]} 4. e5 {[%clk 0:03:01]}  Nfd7 {[%clk 0:02:58]} 5. Ngf3 {[%clk 0:03:01]}  c5 {[%clk 0:02:59]} 6. c3 {[%clk 0:03:02]}  Nc6 {[%clk 0:03:00]} 7. Bd3 {[%clk 0:03:01]}  g6 {[%clk 0:02:58]} 8. O-O {[%clk 0:02:57]}  Bg7 {[%clk 0:02:58]} 9. Re1 {[%clk 0:02:40]}  O-O {[%clk 0:02:57]} 10. Nf1 {[%clk 0:02:39]}  cxd4 {[%clk 0:02:57]} 11. cxd4 {[%clk 0:02:39]}  f6 {[%clk 0:02:58]} 12. exf6 {[%clk 0:02:38]}  Qxf6 {[%clk 0:02:59]} 13. Bg5 {[%clk 0:02:08]}  Qf7 {[%clk 0:02:58]} 14. Be3 {[%clk 0:01:45]}  e5 {[%clk 0:02:58]} 15. dxe5 {[%clk 0:01:43]}  Ndxe5 {[%clk 0:02:58]} 16. Nxe5 {[%clk 0:01:30]}  Nxe5 {[%clk 0:02:59]} 17. h3 {[%clk 0:01:12]}  Bd7 {[%clk 0:02:17]} 18. Rc1 {[%clk 0:01:03]}  Bc6 {[%clk 0:02:15]} 19. Ng3 {[%clk 0:00:56]}  a6 {[%clk 0:02:05]} 20. b4 {[%clk 0:00:53]}  Rae8 {[%clk 0:02:04]} 21. a4 {[%clk 0:00:53]}  Bxa4 {[%clk 0:01:58]} 22. Qd2 {[%clk 0:00:47]}  Rd8 {[%clk 0:01:45]} 23. Bb6 {[%clk 0:00:34]}  Rd7 {[%clk 0:01:38]} 24. Bf1 {[%clk 0:00:17]}  Bc6 {[%clk 0:01:34]} 25. Bd4 {[%clk 0:00:16]}  Re8 {[%clk 0:01:33]} 26. f4 {[%clk 0:00:15]}  Nc4 {[%clk 0:01:21]} 27. Rxe8+ {[%clk 0:00:15]}  Qxe8 {[%clk 0:01:21]} 28. Qe1 {[%clk 0:00:13]} 0-1


[Site "https://www.chess.com"]

[Event "Titled Tuesday Blitz February 14 Late 2023"]
[White "Zaksaite, Salomeja"]
[Black "Pinheiro, Iung Alicio de O."]
[WhiteFideId "12801496"]
[BlackFideId "2104350"]
[WhiteElo "2283"]
[BlackElo "2306"]
[Result "0-1"]
[Round "01"]
[TimeControl "180+2"]
[Date "2023.02.14"]
[WhiteClock "0:00:01"]
[BlackClock "0:00:05"]

1. e4 {[%clk 0:03:00]}  c5 {[%clk 0:02:59]} 2. Nf3 {[%clk 0:02:59]}  Nc6 {[%clk 0:02:57]} 3. Bb5 {[%clk 0:02:57]}  e5 {[%clk 0:02:56]} 4. c3 {[%clk 0:02:54]}  a6 {[%clk 0:02:48]} 5. Ba4 {[%clk 0:02:51]}  b5 {[%clk 0:02:46]} 6. Bc2 {[%clk 0:02:50]}  Nf6 {[%clk 0:02:34]} 7. d4 {[%clk 0:02:49]}  cxd4 {[%clk 0:02:04]} 8. O-O {[%clk 0:02:43]}  dxc3 {[%clk 0:01:49]} 9. Nxc3 {[%clk 0:02:41]}  Be7 {[%clk 0:01:48]} 10. Bg5 {[%clk 0:02:40]}  O-O {[%clk 0:01:48]} 11. Bxf6 {[%clk 0:02:40]}  Bxf6 {[%clk 0:01:46]} 12. Nd5 {[%clk 0:02:40]}  d6 {[%clk 0:01:41]} 13. a4 {[%clk 0:02:35]}  b4 {[%clk 0:01:33]} 14. Qd2 {[%clk 0:02:31]}  Rb8 {[%clk 0:01:32]} 15. h3 {[%clk 0:02:21]}  g6 {[%clk 0:01:07]} 16. Rfd1 {[%clk 0:02:11]}  Bg7 {[%clk 0:01:07]} 17. Bb3 {[%clk 0:02:10]}  Be6 {[%clk 0:01:05]} 18. Rac1 {[%clk 0:02:07]}  Nd4 {[%clk 0:01:05]} 19. Nxd4 {[%clk 0:02:06]}  exd4 {[%clk 0:01:06]} 20. Bc4 {[%clk 0:01:42]}  a5 {[%clk 0:01:05]} 21. b3 {[%clk 0:01:41]}  Qh4 {[%clk 0:01:05]} 22. Qf4 {[%clk 0:01:04]}  Qd8 {[%clk 0:00:44]} 23. Qd2 {[%clk 0:00:37]}  Rc8 {[%clk 0:00:40]} 24. Qd3 {[%clk 0:00:28]}  Rc5 {[%clk 0:00:36]} 25. Nf4 {[%clk 0:00:27]}  Bd7 {[%clk 0:00:28]} 26. Nd5 {[%clk 0:00:22]}  Qh4 {[%clk 0:00:26]} 27. Qf3 {[%clk 0:00:18]}  Be6 {[%clk 0:00:23]} 28. Kh2 {[%clk 0:00:16]}  Be5+ {[%clk 0:00:21]} 29. Kg1 {[%clk 0:00:15]}  Rfc8 {[%clk 0:00:21]} 30. Qe2 {[%clk 0:00:13]}  Bxd5 {[%clk 0:00:12]} 31. exd5 {[%clk 0:00:11]}  Qf4 {[%clk 0:00:11]} 32. g3 {[%clk 0:00:10]}  Qh6 {[%clk 0:00:11]} 33. f4 {[%clk 0:00:08]}  Bf6 {[%clk 0:00:11]} 34. Kg2 {[%clk 0:00:08]}  R5c7 {[%clk 0:00:10]} 35. Re1 {[%clk 0:00:07]}  Re7 {[%clk 0:00:10]} 36. Qd3 {[%clk 0:00:07]}  Rce8 {[%clk 0:00:10]} 37. Qd2 {[%clk 0:00:06]}  Re3 {[%clk 0:00:09]} 38. Re2 {[%clk 0:00:05]}  g5 {[%clk 0:00:06]} 39. Rce1 {[%clk 0:00:04]}  gxf4 {[%clk 0:00:06]} 40. gxf4 {[%clk 0:00:03]}  Qxf4 {[%clk 0:00:07]} 41. Rxe3 {[%clk 0:00:04]}  dxe3 {[%clk 0:00:07]} 42. Qe2 {[%clk 0:00:04]}  Kh8 {[%clk 0:00:07]} 43. Kh1 {[%clk 0:00:03]}  Rg8 {[%clk 0:00:08]} 44. Rf1 {[%clk 0:00:03]}  Qg5 {[%clk 0:00:07]} 45. Qf3 {[%clk 0:00:02]}  Be5 {[%clk 0:00:07]} 46. Bd3 {[%clk 0:00:02]}  e2 {[%clk 0:00:06]} 47. Qxe2 {[%clk 0:00:02]}  Qg3 {[%clk 0:00:06]} 48. Qf3 {[%clk 0:00:01]}  Qh2# {[%clk 0:00:05]} 0-1


[Site "https://www.chess.com"]